[Event "Czech Open-GM 2022"]
[Site "Pardubice"]
[Date "2022.07.26"]
[Round "5.23"]
[White "Akesson, Ralf"]
[Black "Goroshkov, Maksym"]
[Result "0-1"]
[ECO "A05"]
[WhiteElo "2427"]
[BlackElo "2240"]
[Annotator "TA"]
[PlyCount "148"]
[EventDate "2022.07.22"]
[EventType "swiss"]
[EventCountry "CZE"]
[SourceTitle "playchess.com"]
[Source "ChessBase"]
[SourceQuality "1"]
[TimeControl "40/5400+30:1800+30"]

{[%evp 15,148,18,24,24,27,14,19,9,18,10,19,18,25,20,22,19,22,0,28,0,0,0,10,-30,-37,-43,-44,-34,-31,-27,-36,-31,-7,-13,-10,-27,-27,-24,-16,-43,-31,-27,-19,-19,-30,-32,-24,-27,-18,-20,-18,-52,-18,-28,-11,-18,-11,-75,-81,-83,-33,-48,-18,-9,-8,-8,-11,-8,-36,-54,-24,-179,0,0,0,-258,-40,-43,-52,-46,-44,-140,-128,-148,-141,-133,-139,-315,-118,-132,-8,-8,-8,-8,-8,-8,-8,-8,-8,-8,-8,-8,-8,-75,-75,-75,-75,-75,-75,-11852,-4930,-29966,-29967,-29967,-29967,-29970,-29971,-29972,-29973,-29973,-29973,-29974,-29974,-29975,-29976,-29976,-29977,-29977,-29978,-29978,-29979,-29979,-29979,-29977,-29974]} 1. Nf3 {[%emt 0:01:51]} Nf6 {[%emt 0:00:07]} 2. c4 {[%emt 0:00:24]} e6 {[%emt 0:00:21]} 3. g3 {[%emt 0:00:41]} b6 {[%emt 0:00:15]} 4. Bg2 {[%emt 0:00:08]} Bb7 {[%emt 0:00:57]} 5. d4 {[%emt 0:00:39]} d5 {[%emt 0:00:30]} 6. cxd5 {[%emt 0:00:42]} exd5 {[%emt 0:00:09]} 7. O-O {[%emt 0:00:16]} Bd6 {[%emt 0:00:21]} 8. Nc3 {[%emt 0:00:38]} O-O {[%emt 0:00:41]} 9. Ne5 {[%emt 0:07:34] D02: 1 d4 d5 2 Nf3 sidelines, including 2...Nf6 3 g3 and 2...Nf6 3 Bf4.} Nbd7 {[%emt 0:10:28]} 10. Nc4 {[%emt 0:07:03]} Bb4 {[%emt 0:01:36] [#]} 11. Bf4 $146 {[%emt 0:09:23] The position is equal.} ({Predecessor:} 11. Ne3 c6 12. a3 Bd6 13. Nf5 Bc7 14. Bg5 h6 15. Bh4 Kh7 16. f4 g6 17. Ne3 {1-0 (39) Pytel,K (2410)-Therkildsen,T (2298) Le Touquet 2007}) 11... Bxc3 {[%emt 0:03:12]} 12. bxc3 {[%emt 0:00:12]} Ne4 {[%emt 0:00:20] [#]} 13. Qc2 $1 {[%emt 0:06:04]} dxc4 {[%emt 0:00:09]} (13... Re8 14. Nd2) 14. Bxe4 {[%emt 0:00:06]} Bxe4 {[%emt 0:00:04]} 15. Qxe4 {[%emt 0:00:08]} Nf6 {[%emt 0:00:05]} 16. Qg2 {[%emt 0:07:11]} Re8 {[%emt 0:01:47] Prevents e4.} 17. Rfe1 {[%emt 0:02:11]} Nd5 {[%emt 0:02:29]} 18. Bd2 {[%emt 0:02:45]} f5 {[%emt 0:00:09]} 19. e3 {[%emt 0:03:16]} Nf6 {[%emt 0:01:10]} 20. Qc6 {[%emt 0:01:08]} Qd5 {[%emt 0:01:02]} 21. Qxd5+ {[%emt 0:00:40]} Nxd5 {[%emt 0:00:06]} 22. f3 {[%emt 0:00:18]} Nf6 {[%emt 0:00:16]} 23. Rab1 {[%emt 0:04:49]} c6 {[%emt 0:04:20]} 24. h3 {[%emt 0:02:50]} h5 {[%emt 0:01:07] Against g4} 25. Re2 {[%emt 0:01:37]} b5 {[%emt 0:02:01]} 26. Rbe1 {[%emt 0:01:08]} Re6 {[%emt 0:00:10]} 27. e4 {[%emt 0:04:36]} fxe4 {[%emt 0:01:03]} (27... Rae8 $5 {[%cal Rf5e4]}) 28. fxe4 {[%emt 0:00:30]} Rae8 {[%emt 0:00:08][%cal Re6e4]} 29. e5 {[%emt 0:00:46]} Nd5 {[%emt 0:00:11]} 30. Kg2 {[%emt 0:05:48]} a5 {[%emt 0:01:37]} (30... Kf7 {with more complications.} 31. Rf2+ Kg6 32. Rb1 a5) 31. Rc1 {[%emt 0:02:27]} a4 {[%emt 0:00:43]} (31... Kf7 {feels hotter.} 32. Rf2+ Kg6 33. g4 hxg4 34. hxg4 c5) 32. a3 {[%emt 0:03:06]} Rf8 {[%emt 0:00:59]} 33. Re4 {[%emt 0:01:25]} Rf5 {[%emt 0:03:52]} 34. g4 {[%emt 0:03:04]} hxg4 {[%emt 0:00:10]} 35. hxg4 {[%emt 0:00:11]} Rf7 {[%emt 0:00:09]} 36. Kg3 {[%emt 0:01:42]} (36. Ree1 $11 {remains equal.}) 36... Re8 $17 {[%emt 0:02:30] 0x0.001e3ab1db1adp-1022s more active pieces.} 37. Re2 {[%emt 0:04:38]} Nc7 {[%emt 0:00:37]} (37... Ref8 $17 38. g5 Rf1 39. Rxf1 Rxf1) 38. Rh1 $15 {[%emt 0:07:57]} Ref8 {[%emt 0:00:37] With the idea ...Rf3+.} 39. g5 $1 {[%emt 0:03:54]} Rf3+ {[%emt 0:00:14]} 40. Kg4 $1 {[%emt 0:00:13]} Rf2 {[%emt 0:00:06]} 41. Rxf2 {[%emt 0:34:10]} Rxf2 $11 {[%emt 0:30:06][%mdl 4096] Endgame KRB-KRN} 42. Be1 {[%emt 0:00:37]} Ra2 {[%emt 0:02:01]} 43. Kf5 $2 {[%emt 0:00:00]} (43. Bg3 $1 $11 {and White has nothing to worry.}) 43... Rxa3 $2 {[%emt 0:00:00]} ({Black should try} 43... Ra1 $19 44. g6 b4 45. cxb4 (45. axb4 $2 a3 $19) 45... Rd1) 44. e6 {[%emt 0:00:00]} Ra2 {[%emt 0:00:00]} 45. Ke5 $2 {[%emt 0:00:00][%mdl 8192]} (45. Bg3 $11 {and White stays safe.} Ne8 46. g6) 45... Ne8 $2 {[%emt 0:00:00]} ({Black should play} 45... b4 $1 $19 {[%cal Rb4b3] aiming for ...b3.} 46. e7 (46. Kd6 $2 Nxe6 47. cxb4 Nxg5 $19) 46... Re2+ 47. Kd6 b3 $1) 46. d5 $1 $15 {[%emt 0:00:00]} Re2+ {[%emt 0:00:00]} 47. Kd4 {[%emt 0:00:00]} cxd5 {[%emt 0:00:00]} 48. Kxd5 {[%emt 0:00:00] [#]} (48. Bg3 $1 $15) 48... Nc7+ $1 $17 {[%emt 0:00:00]} 49. Kc6 {[%emt 0:00:00]} Nxe6 {[%emt 0:00:00]} 50. Kxb5 {[%emt 0:00:00]} a3 {[%emt 0:00:00]} ({Worse is} 50... Nxg5 51. Kxa4 Rb2 52. Bg3 $15) 51. Kxc4 $2 {[%emt 0:00:00]} (51. Bg3 $17 {was necessary.}) 51... a2 $2 {[%emt 0:00:00]} (51... Nxg5 $19 {and Black stays clearly on top.} 52. Kb3 a2) 52. Bg3 {[%emt 0:00:00]} Rb2 {[%emt 0:00:00]} (52... Nxg5 $17 53. Ra1 Ne4) 53. Ra1 $11 {[%emt 0:00:00]} Nxg5 {[%emt 0:00:00] Strongly threatening ...Ne4.} 54. Bd6 $1 {[%emt 0:01:43]} Ne4 {[%emt 0:00:00]} 55. Ba3 {[%emt 0:00:50]} Rh2 {[%emt 0:00:00]} 56. Kd3 {[%emt 0:02:23]} Nf6 {[%emt 0:00:00]} 57. Kc4 $1 {[%emt 0:00:35]} Kf7 {[%emt 0:00:00]} 58. Kb3 {[%emt 0:01:00]} Ne4 {[%emt 0:00:00]} 59. Rc1 {[%emt 0:02:59]} (59. Rxa2 $11 {keeps the balance.} Rxa2 60. Kxa2) 59... g5 $17 {[%emt 0:00:00] ...g4 is the strong threat. White is now going downhill.} 60. c4 Nd2+ {[%emt 0:00:00]} 61. Kxa2 {[%emt 0:02:05]} Nxc4+ $1 {[%emt 0:00:00]} 62. Kb3 $2 {[%emt 0:00:06][%mdl 8192]} (62. Ka1 $17) 62... Nxa3 $19 {[%emt 0:00:00]} 63. Kxa3 {[%emt 0:00:06] KR-KR} Kg6 {[%emt 0:00:00] Black mates.} 64. Kb3 {[%emt 0:00:04]} Rh8 {[%emt 0:00:00]} 65. Rc6+ {[%emt 0:01:48]} Kh5 {[%emt 0:00:00]} 66. Kc3 {[%emt 0:00:06]} Rd8 {[%emt 0:00:00]} 67. Rc7 {[%emt 0:00:08]} Kh4 {[%emt 0:00:00]} 68. Rh7+ {[%emt 0:00:22]} Kg3 {[%emt 0:00:00]} 69. Rg7 {[%emt 0:01:05]} g4 {[%emt 0:00:00][%cal Bg5g4,Bg4g3][%mdl 32]} 70. Kc2 {[%emt 0:00:07]} Kf3 {[%emt 0:00:00]} 71. Rf7+ {[%emt 0:00:06]} Kg2 {[%emt 0:00:00]} 72. Rg7 {[%emt 0:00:14]} g3 {[%emt 0:00:00]} 73. Rg6 {[%emt 0:00:09]} Kf2 {[%emt 0:00:00]} 74. Rf6+ {[%emt 0:00:10]} Kg1 {[%emt 0:00:00] Weighted Error Value: White=0.26 (precise) /Black=0.22 (precise)} 0-1

[Event "Czech Open-GM 2022"]
[Site "Pardubice"]
[Date "2022.07.26"]
[Round "5.24"]
[White "Smith, Bryan"]
[Black "Mullick, Raahil"]
[Result "0-1"]
[ECO "B90"]
[WhiteElo "2421"]
[BlackElo "2237"]
[Annotator "TA"]
[PlyCount "74"]
[EventDate "2022.07.22"]
[EventType "swiss"]
[EventCountry "CZE"]
[SourceTitle "playchess.com"]
[Source "ChessBase"]
[SourceQuality "1"]
[TimeControl "40/5400+30:1800+30"]

{[%evp 9,74,29,23,18,21,34,27,29,22,22,60,51,47,-31,-12,-52,-58,-58,-62,-56,291,316,243,250,242,-187,-182,-197,-219,-205,-201,-193,-168,-181,-166,-177,-174,-235,-229,-239,-204,-220,-198,-217,-3,-24,-17,-454,-450,-697,-688,-707,-710,-701,-691,-672,-670,-662,-643,-590,-478,-463,-449,-12841,-12841,-12844,-12844]} 1. e4 {[%emt 0:00:03]} c5 {[%emt 0:00:40]} 2. Nf3 {[%emt 0:00:15]} d6 {[%emt 0:00:06]} 3. d4 {[%emt 0:00:04]} cxd4 {[%emt 0:00:03]} 4. Nxd4 {[%emt 0:00:05]} Nf6 {[%emt 0:00:04]} 5. Nc3 {[%emt 0:00:05]} a6 {[%emt 0:00:03]} 6. Qd3 {[%emt 0:00:11] B90: Sicilian Najdorf: Unusual White 6th moves, 6 Be3 Ng4 and 6 Be3 e5.} Nbd7 {[%emt 0:00:06]} 7. Be2 {[%emt 0:00:11]} g6 {[%emt 0:00:31]} 8. Bg5 {[%emt 0:00:09] White has an edge.} Bg7 {[%emt 0:00:06]} 9. O-O-O {[%emt 0:00:24]} O-O {[%emt 0:01:34]} 10. h4 {[%emt 0:13:03] [#]} h6 $146 {[%emt 0:18:10]} ({Predecessor:} 10... h5 11. Kb1 b5 12. Nc6 Qe8 13. Nd5 Nxd5 14. exd5 f6 15. Be3 Ne5 16. Nxe5 fxe5 {0-1 (37) Gergel,V (2232)-Bashirli,N (1963) Marianske Lazne 2015}) 11. f4 {[%emt 0:05:53]} (11. Bxf6 $14 Nxf6 12. h5) 11... Nc5 $15 {[%emt 0:09:32]} (11... hxg5 $6 12. hxg5 Nc5 13. Qe3 $17) 12. Qe3 {[%emt 0:00:55][%cal Of4f5]} hxg5 {[%emt 0:05:25]} 13. hxg5 {[%emt 0:00:10]} e5 $1 {[%emt 0:32:27]} 14. Nf5 {[%emt 0:28:47]} gxf5 $4 {[%emt 0:01:54][%mdl 8192]} (14... exf4 $15 {keeps the upper hand.} 15. Qxf4 gxf5 16. Rxd6 Nfxe4 $1 17. Rxd8 Rxd8 18. Nxe4 Nxe4) 15. gxf6 $18 {[%emt 0:00:15]} Qxf6 {[%emt 0:01:22] Strongly threatening ...exf4.} 16. Nd5 {[%emt 0:01:45]} Qd8 {[%emt 0:00:02]} 17. Qh3 $4 {[%emt 0:05:59][%mdl 8192]} (17. Rh5 $1 $18 {is the narrow road to win.}) 17... Re8 $19 {[%emt 0:00:01]} 18. g4 {[%emt 0:02:32]} Be6 {[%emt 0:08:45] Hoping for ...Bxd5.} (18... fxe4 19. f5 $11) 19. gxf5 {[%emt 0:00:35] Qh7+ would kill now.} Bxd5 {[%emt 0:00:52]} 20. Rdg1 {[%emt 0:04:22][%csl Gh1][%cal Rh3h8] [#]} Kf8 $1 {[%emt 0:00:07][%cal Od8f6]} 21. Rxg7 {[%emt 0:03:18][%cal Og7g8] Intending Rg8+! and mate.} Qf6 {[%emt 0:00:44]} (21... Bxa2 {[#] is a self mate.} 22. Rg8+ $3 {[%mdl 512]} (22. Qh7 Rc8 $17) 22... Ke7 23. f6+ Kxf6 24. Qh4+ Ke6 25. Bg4+ f5 26. Bxf5+ Kf7 27. Qh7+ Kf6 28. Rh6#) (21... Bxe4 $2 22. Qh8+ (22. Qh7 $2 Qf6 $19) 22... Ke7 23. Rxf7+ $3 {[%mdl 512]} Kxf7 24. Rh7#) 22. Rhg1 {[%emt 0:03:03]} Nxe4 {[%emt 0:06:40]} ({Don't take} 22... Bxe4 23. Rxf7+ Qxf7 24. Qh6+ Ke7 25. Rg7 $18) 23. R1g6 {[%emt 0:04:44]} (23. Bh5 $142 Qxg7 24. Rxg7 Kxg7 25. Qg4+ Kf8 26. Qh4) 23... Qxg7 {[%emt 0:02:27]} 24. Rxg7 {[%emt 0:00:05]} Kxg7 {[%emt 0:00:09] Chess con chili.} 25. Qg4+ {[%emt 0:07:11]} Kf8 {[%emt 0:00:14]} 26. Qh4 {[%emt 0:02:56]} f6 $2 {[%emt 0:00:40]} (26... Bxa2 27. f6 Nxf6 28. Qxf6 $16) ({Black should try} 26... exf4 $19 {Threatens to win with ...f6.} 27. Bf3 Rac8 28. Qh8+ Ke7) 27. Bf3 {[%emt 0:01:41]} exf4 {[%emt 0:08:52]} (27... Bxa2 $2 28. Bxe4 Ke7 29. fxe5 dxe5 30. Bxb7 $18) 28. Qxf4 $2 {[%emt 0:03:41][%mdl 8192]} (28. Bxe4 $11 Rxe4 29. Qxf6+ Ke8 30. Qh8+ Kd7 31. Qxa8) 28... Rac8 {[%emt 0:02:20] Black is clearly winning.} 29. c3 {[%emt 0:05:36]} (29. Qh4 $142 Kg8 30. Qh6) 29... Re5 {[%emt 0:00:27][%cal Oe4c3] ...Nxc3! is the strong threat.} 30. Bxe4 {[%emt 0:01:08]} Bxe4 {[%emt 0:00:02]} 31. Qh6+ {[%emt 0:00:11]} Ke7 {[%emt 0:00:00]} 32. Qg7+ {[%emt 0:00:10]} Kd8 {[%emt 0:00:01]} 33. Qxf6+ {[%emt 0:00:11]} Kd7 {[%emt 0:01:06]} 34. Qg7+ {[%emt 0:00:54]} Kc6 {[%emt 0:00:22] aiming for ...Bd5.} 35. f6 {[%emt 0:00:23]} Bd5 {[%emt 0:01:19]} 36. b3 {[%emt 0:01:06]} (36. f7 $142 Rf5 37. Qg4 Rf1+ 38. Kd2) 36... Rg8 {[%emt 0:00:38]} 37. Qh6 {[%emt 0:01:17]} Re2 {[%emt 0:00:19] Weighted Error Value: White=0.77/Black=0.33} 0-1

[Event "Czech Open-GM 2022"]
[Site "Pardubice"]
[Date "2022.07.26"]
[Round "5.25"]
[White "Gombocz, Ferenc Jr."]
[Black "Lalic, Bogdan"]
[Result "1/2-1/2"]
[ECO "A46"]
[WhiteElo "2229"]
[BlackElo "2412"]
[Annotator "TA"]
[PlyCount "26"]
[EventDate "2022.07.22"]
[EventType "swiss"]
[EventCountry "CZE"]
[SourceTitle "playchess.com"]
[Source "ChessBase"]
[SourceQuality "1"]
[TimeControl "40/5400+30:1800+30"]

{[%evp 10,26,0,0,22,19,8,10,22,26,22,12,12,15,10,0,0,0,0]} 1. d4 {[%emt 0:00:06]} Nf6 {[%emt 0:02:19]} 2. Nf3 {[%emt 0:00:16]} e6 {[%emt 0:00:41]} 3. Bf4 {[%emt 0:00:56]} d5 {[%emt 0:00:19]} 4. e3 {[%emt 0:02:03]} Bd6 {[%emt 0:00:30]} 5. Ne5 {[%emt 0:02:41]} O-O {[%emt 0:00:54]} 6. Nd2 {[%emt 0:00:34]} Nfd7 {[%emt 0:00:45] D02: 1 d4 d5 2 Nf3 sidelines, including 2...Nf6 3 g3 and 2...Nf6 3 Bf4.} 7. Bd3 {[%emt 0:09:12]} Nc6 {[%emt 0:01:24] [#]} 8. Nxd7 $146 {[%emt 0:13:01]} ({Predecessor:} 8. Nxc6 bxc6 9. Bg3 f5 10. f4 c5 11. c3 cxd4 12. exd4 c5 13. Nf3 Qb6 14. Qe2 cxd4 15. Qxe6+ {0-1 (21) Albert Garrote,A (1825)-Valentin Pascual,C (2114) Benimodo 2017}) 8... Qxd7 {[%emt 0:02:44]} 9. c3 {[%emt 0:00:37]} Qe7 {[%emt 0:05:20]} 10. Bxd6 {[%emt 0:03:58] The position is equal.} cxd6 {[%emt 0:00:32]} 11. O-O {[%emt 0:01:15]} e5 {[%emt 0:01:49]} 12. Kh1 {[%emt 0:05:34]} f5 {[%emt 0:01:00]} 13. f4 {[%emt 0:01:10]} e4 {[%emt 0:00:07] An even fight not without its subleties.  Weighted Error Value: White=0.02 (flawless) /Black=0.04 (flawless)} 1/2-1/2

[Event "Czech Open-GM 2022"]
[Site "Pardubice"]
[Date "2022.07.26"]
[Round "5.26"]
[White "Jurcik, Marian"]
[Black "Prilleltensky, Matan"]
[Result "1-0"]
[ECO "B42"]
[WhiteElo "2409"]
[BlackElo "2191"]
[Annotator "TA"]
[PlyCount "83"]
[EventDate "2022.07.22"]
[EventType "swiss"]
[EventCountry "CZE"]
[SourceTitle "playchess.com"]
[Source "ChessBase"]
[SourceQuality "1"]
[TimeControl "40/5400+30:1800+30"]

{[%evp 15,83,29,39,6,14,20,23,6,26,22,38,3,36,46,72,39,45,-14,0,0,0,0,19,-50,0,-34,1,0,10,10,9,13,13,13,21,0,0,-12,16,13,23,0,0,0,13,0,111,23,74,0,222,220,208,200,303,279,493,493,538,538,532,497,499,473,812,818,794,784,29972,29972]} 1. e4 {[%emt 0:02:22]} c5 {[%emt 0:00:09]} 2. Nf3 {[%emt 0:00:24]} e6 {[%emt 0:00:09]} 3. d4 {[%emt 0:00:09]} cxd4 {[%emt 0:00:06]} 4. Nxd4 {[%emt 0:00:22]} a6 {[%emt 0:00:10]} 5. Bd3 {[%emt 0:00:57]} Bc5 {[%emt 0:00:31]} 6. Nb3 {[%emt 0:04:22]} Ba7 {[%emt 0:00:14]} 7. Qe2 $1 {[%emt 0:02:46] 7.Qe2 is better than 7.0-0.} Nc6 {[%emt 0:01:04]} 8. Be3 {[%emt 0:02:49]} d6 {[%emt 0:00:31]} 9. N1d2 {[%emt 0:00:43] B42: Sicilian: Kan Variation: 5 Bd3.} Nf6 {[%emt 0:01:39][%cal Bg8f6,Bf6d7,Bd7c5][%mdl 32]} 10. Bxa7 {[%emt 0:30:01]} Rxa7 {[%emt 0:00:19]} 11. g4 {[%emt 0:01:36][%cal Bg2g4,Bg4g5][%mdl 32] [#] White has an edge.} Qc7 $146 {[%emt 0:18:26]} ({Predecessor:} 11... b5 12. f4 Nb4 13. g5 Nd7 14. h4 e5 15. f5 h6 16. Rg1 hxg5 17. hxg5 Qb6 {½-½ (40) Safarli,E (2649)-Kveinys,A (2497) Warsaw 2015}) 12. g5 {[%emt 0:04:40]} Nd7 {[%emt 0:01:48]} 13. c3 {[%emt 0:02:32]} b6 {[%emt 0:06:51]} 14. f4 {[%emt 0:01:15]} Bb7 {[%emt 0:01:06]} 15. Nf3 {[%emt 0:07:50] White is more active.} b5 {[%emt 0:03:26]} 16. Nbd4 {[%emt 0:05:02]} (16. h4 $14) 16... Ra8 {[%emt 0:05:32]} 17. a3 {[%emt 0:07:00]} Nc5 {[%emt 0:03:46]} 18. Bc2 {[%emt 0:00:22]} Rd8 {[%emt 0:04:38]} 19. Qe3 {[%emt 0:08:36]} (19. O-O-O $11) 19... O-O {[%emt 0:05:07]} (19... Na5 $1 $15 20. Nd2 Nc4 21. Nxc4 bxc4) 20. O-O-O {[%emt 0:02:07]} Nxd4 {[%emt 0:03:47]} 21. Nxd4 {[%emt 0:00:11]} Rfe8 {[%emt 0:01:11]} 22. Rhe1 {[%emt 0:00:48]} e5 {[%emt 0:04:51]} 23. Nf5 {[%emt 0:00:46]} Ne6 {[%emt 0:03:29]} 24. fxe5 {[%emt 0:04:35]} dxe5 {[%emt 0:00:07]} 25. h4 {[%emt 0:02:20]} Nf4 {[%emt 0:00:59]} 26. Rg1 {[%emt 0:01:05] Against Ng2} Rxd1+ {[%emt 0:01:57]} 27. Rxd1 {[%emt 0:00:24]} Rd8 {[%emt 0:02:00]} 28. Rd2 {[%emt 0:04:16]} Rxd2 29. Qxd2 {[%emt 0:00:25]} Bc6 {[%emt 0:09:30]} 30. Qe3 {[%emt 0:00:58] Hoping for Qc5.} Qd8 {[%emt 0:01:41] [#]} (30... Be8 $11) 31. b4 {[%emt 0:02:27]} (31. Kb1 $1 $16) 31... Bb7 {[%emt 0:08:57]} (31... h6 $1 $11 {remains equal.}) 32. Kb2 $40 {[%emt 0:01:00][%mdl 128] White has some attack.} ({White should play} 32. Qa7 $16 Qc7 33. Kb2) 32... Bc8 {[%emt 0:01:32] [#]} (32... h5 $11 {and Black has nothing to worry.}) 33. Qc5 $1 $18 {[%emt 0:00:50] Strongly threatening Ne7+.} Bxf5 {[%emt 0:04:42]} 34. exf5 {[%emt 0:00:01][%mdl 4096] Endgame KQB-KQN} f6 {[%emt 0:02:43]} (34... Nd5 {keeps fighting.} 35. c4 bxc4 36. Qxc4 Nc7) 35. Qc6 {[%emt 0:00:28]} fxg5 $2 {[%emt 0:01:00]} (35... Kf7 36. Qxa6 Qd7) 36. hxg5 {[%emt 0:00:09]} Kf8 {[%emt 0:01:03]} 37. Qc5+ {[%emt 0:01:39]} Qe7 {[%emt 0:00:29]} 38. Qc8+ {[%emt 0:00:05]} Qe8 {[%emt 0:00:09]} 39. Qxa6 {[%emt 0:00:13]} Qd8 {[%emt 0:01:49]} (39... Qd7 $142 40. f6 Ne6 41. Qa8+ Kf7) 40. Qxb5 {[%emt 0:01:00]} Qd2 {[%emt 0:01:51]} 41. a4 {[%emt 0:08:05] Black must now prevent Qb8+.} Ne2 {[%emt 0:00:42]} 42. Qb8+ {[%emt 0:01:59] Weighted Error Value: White=0.21 (precise) /Black=0.71} 1-0

[Event "Czech Open-GM 2022"]
[Site "Pardubice"]
[Date "2022.07.26"]
[Round "5.27"]
[White "Koziorowicz, Michal"]
[Black "Rabatin, Jakub"]
[Result "1/2-1/2"]
[ECO "B30"]
[WhiteElo "2231"]
[BlackElo "2349"]
[Annotator "TA"]
[PlyCount "120"]
[EventDate "2022.07.22"]
[EventType "swiss"]
[EventCountry "CZE"]
[SourceTitle "playchess.com"]
[Source "ChessBase"]
[SourceQuality "1"]
[TimeControl "40/5400+30:1800+30"]

{[%evp 12,120,7,0,0,0,0,0,0,-27,-16,-16,-10,-25,-8,-58,-66,-59,-37,-40,-47,-64,-61,-65,-48,-58,-46,-49,-44,-58,-38,-37,-39,-39,-31,-33,-32,-24,-26,-37,-26,-55,-20,-30,0,0,0,0,0,0,0,0,0,-24,0,-24,-25,-60,-40,-93,-90,-102,-23,-143,0,0,0,0,0,0,0,0,0,0,0,0,0,0,0,0,0,0,0,0,0,0,0,-12,32,0,153,153,153,0,0,0,0,0,0,0,0,0,0,-130,-197,-156,-133,-283,0,0,0]} 1. e4 {[%emt 0:00:11]} c5 {[%emt 0:00:08]} 2. Nf3 {[%emt 0:00:16]} Nc6 {[%emt 0:00:05]} 3. Bb5 {[%emt 0:00:47]} e6 {[%emt 0:00:27]} 4. O-O {[%emt 0:00:17]} Nge7 {[%emt 0:00:13]} 5. Re1 {[%emt 0:00:18]} Nd4 {[%emt 0:00:57]} 6. Bf1 {[%emt 0:06:03]} Nec6 {[%emt 0:04:02]} 7. c3 {[%emt 0:03:04]} Nxf3+ {[%emt 0:00:06] B30: Sicilian: 2...Nc6 3 Bb5, lines without ...g6.} 8. Qxf3 {[%emt 0:00:07]} Be7 {[%emt 0:01:43]} 9. Na3 {[%emt 0:06:40][%cal Od2d4]} d5 {[%emt 0:09:39][%cal Bd7d5,Bd5d4][%mdl 32]} 10. d3 {[%emt 0:06:43]} O-O {[%emt 0:00:47] [#]} 11. Bf4 $146 {[%emt 0:02:23]} ({Predecessor:} 11. Nc2 d4 12. e5 dxc3 13. bxc3 Qd5 14. Qg3 Rd8 15. Bh6 Bf8 16. Bg5 Re8 17. Re4 {½-½ (29) Bressy,T (2289)-Migot,T (2351) Europe Echecs INT 2020}) 11... a6 {[%emt 0:09:16]} 12. Nc2 {[%emt 0:07:03]} d4 {[%emt 0:03:14]} 13. g3 {[%emt 0:10:29]} (13. cxd4 $11 cxd4 14. e5) 13... e5 $15 {[%emt 0:10:39]} 14. Bd2 {[%emt 0:00:18]} Bg5 {[%emt 0:00:24]} 15. Qd1 {[%emt 0:09:38]} Be6 {[%emt 0:05:03]} 16. Bg2 {[%emt 0:03:41]} Bxd2 {[%emt 0:11:58]} 17. Qxd2 {[%emt 0:00:05]} b5 {[%emt 0:00:07]} 18. Red1 {[%emt 0:12:35]} Qd6 {[%emt 0:03:11]} 19. f4 {[%emt 0:05:27]} f6 {[%emt 0:02:46]} 20. Qf2 {[%emt 0:02:25]} Rab8 {[%emt 0:09:29]} 21. cxd4 cxd4 {[%emt 0:01:01]} 22. Qd2 {[%emt 0:08:56]} Rfc8 {[%emt 0:07:44]} 23. Rdc1 {[%emt 0:01:10]} b4 {[%emt 0:01:21]} 24. Ne1 {[%emt 0:00:25]} a5 {[%emt 0:05:38][%cal Ba6a5,Ba5a4][%mdl 32]} 25. Bf3 {[%emt 0:02:20][%cal Bg2f3,Bf3g4,Bg4d1][%mdl 32]} a4 {[%emt 0:01:20]} 26. a3 {[%emt 0:01:44]} Bb3 {[%emt 0:06:47]} 27. Bg4 {[%emt 0:01:11]} Rc7 {[%emt 0:00:36]} 28. axb4 $1 {[%emt 0:01:05]} Nxb4 {[%emt 0:03:42]} 29. Rxc7 {[%emt 0:00:12]} Qxc7 {[%emt 0:00:02]} 30. Rc1 {[%emt 0:00:06]} Qd6 {[%emt 0:00:04]} 31. fxe5 {[%emt 0:01:50]} fxe5 {[%emt 0:00:11]} 32. Bd1 {[%emt 0:00:11]} h6 {[%emt 0:02:34]} (32... Na2 $5 {[%cal Ra2c1]} 33. Ra1 Qf6 $11) 33. Nf3 {[%emt 0:00:28]} Kh7 {[%emt 0:00:53]} 34. Nh4 {[%emt 0:01:55]} Na2 {[%emt 0:00:36]} 35. Ra1 {[%emt 0:02:42]} ({Better is} 35. Rb1 $1 $15) 35... Qb4 $1 $17 {[%emt 0:00:31]} 36. Qe2 {[%emt 0:00:06] [#]} Bxd1 {[%emt 0:00:23]} (36... Nc3 $1 $17 {[%mdl 512]} 37. bxc3 dxc3) 37. Rxd1 {[%emt 0:00:12] [#]} (37. Qxd1 $11 {was the only way to keep the balance.} Qxb2 38. Qf1) 37... Qxb2 {[%emt 0:00:39]} ({Black should play} 37... Nc3 $1 $17 {[%cal Rc3e2][%mdl 512]} 38. bxc3 dxc3) 38. Qf3 $11 {[%emt 0:00:19]} Qb6 {[%emt 0:00:37]} 39. Qf5+ {[%emt 0:00:24]} Kg8 $1 {[%emt 0:00:19]} 40. Rf1 {[%emt 0:02:33]} Nc3 {[%emt 0:00:32][%cal Ob6f6]} 41. Qf7+ {[%emt 0:32:48]} Kh7 {[%emt 0:02:28]} 42. Qf5+ {[%emt 0:00:00]} Kg8 {[%emt 0:01:02][%cal Ob6f6]} 43. Qd7 $1 {[%emt 0:00:00]} Rd8 {[%emt 0:12:45]} 44. Qf7+ {[%emt 0:00:00]} Kh7 {[%emt 0:00:42]} 45. Qf5+ {[%emt 0:00:00]} Kg8 {[%emt 0:00:35][%cal Ob6f6] White must now prevent ...Qf6!} 46. Qxe5 {[%emt 0:00:00]} Qd6 $1 {[%emt 0:12:11]} ({But not} 46... Ne2+ 47. Kg2 (47. Kf2 Nc1 $11) 47... Qd6 48. Qh5 $14) 47. Qa5 {[%emt 0:00:00]} Rf8 {[%emt 0:00:20]} 48. Nf5 {[%emt 0:00:00]} Qd7 {[%emt 0:00:35]} 49. Qc5 {[%emt 0:00:00]} Rf6 {[%emt 0:02:47]} 50. Re1 {[%emt 0:00:00]} ({Not} 50. Nxd4 $2 Qxd4+ $3 {[%mdl 512]} 51. Qxd4 Ne2+ 52. Kg2 Nxd4 $19) 50... Kh7 $2 {[%emt 0:01:41]} (50... Qb7 $11) 51. Nxd4 $16 {[%emt 0:00:00] Strongly threatening e5. White is more active.} Rd6 {[%emt 0:00:34] [#]} 52. Qxc3 {[%emt 0:03:19]} (52. e5 $1 $16 {[%cal Re5d6]} Rxd4 53. e6) 52... Rxd4 {[%emt 0:00:01][%mdl 4096] Endgame KQR-KQR} 53. Re3 {[%emt 0:00:46]} Qa7 {[%emt 0:00:02]} 54. Kg2 $1 {[%emt 0:01:15]} a3 {[%emt 0:00:21] And now ...Rd6 would win.} 55. Re1 {[%emt 0:00:36]} a2 {[%emt 0:00:36]} 56. Ra1 {[%emt 0:00:40]} Ra4 {[%emt 0:00:20]} 57. e5 {[%emt 0:00:55]} (57. Qc2 $11) 57... Qb7+ $17 {[%emt 0:01:35]} 58. Kf2 {[%emt 0:01:40]} Qd5 {[%emt 0:00:36] ...h5 is the strong threat.} 59. d4 (59. Kg1 $17) 59... Rxd4 $2 {[%emt 0:00:27]} ({Black should try} 59... Ra7 $19 60. Qc2+ g6) 60. Qc2+ $11 {[%emt 0:00:35]} Qe4 {[%emt 0:00:33] White used his chance.  Weighted Error Value: White=0.21 (precise) /Black=0.20 (precise)} 1/2-1/2